fUST/lending_fUST_20240715
["ID","MTS","AMOUNT","RATE_DAILY","PERIOD"]
[332167803,1720998646932,-291.9149805,0.00024931,2]
[332167805,1720998646941,-500.0,0.00024931,2]
[332167807,1720998646950,-500.0,0.00024931,2]
[332167808,1720998646961,-190.46,0.00024931,2]
[332167809,1720998646970,-500.0,0.00024931,2]
[332167810,1720998646979,-500.0,0.00024931,2]
[332167811,1720998646988,-500.0,0.00024931,2]
[332167812,1720998646998,-580.83,0.00024931,4]
[332167813,1720998647007,-7079.99,0.00024931,2]
[332167814,1720998647017,-500.0,0.00024931,2]
[332167815,1720998647026,-500.0,0.00024931,2]
[332167816,1720998647037,-1205.48,0.00024931,2]
[332167817,1720998647048,-500.0,0.00024931,2]
[332167818,1720998647058,-505.87,0.00024931,2]
[332167819,1720998647067,-500.0,0.00024931,2]
[332167820,1720998647076,-500.0,0.00024931,2]
[332167821,1720998647085,-500.0,0.00024931,2]
[332167822,1720998647095,-500.0,0.00024931,2]
[332167823,1720998647104,-500.0,0.00024931,2]
[332167824,1720998647113,-500.0,0.00024931,2]
[332167825,1720998647122,-873.03,0.00024931,2]
[332167826,1720998647131,-181.28663295,0.00024931,2]
[332167827,1720998647141,-500.0,0.00024931,2]
[332167828,1720998647151,-500.0,0.00024931,2]
[332167829,1720998647161,-290.49978384,0.00025204,2]
[332167830,1720998647170,-500.0,0.00025205,2]
[332167831,1720998647179,-500.0,0.00025205,2]
[332167832,1720998647188,-500.0,0.00025205,2]
[332167833,1720998647197,-500.0,0.00025205,2]
[332167834,1720998647207,-637.68,0.00025205,2]
[332167835,1720998647216,-485.26,0.00025205,2]
[332167836,1720998647225,-500.0,0.00025205,2]
[332167837,1720998647235,-500.0,0.00025205,2]
[332167838,1720998647244,-500.0,0.00025205,2]
[332167839,1720998647254,-500.0,0.00025205,2]
[332167840,1720998647265,-289.31110003,0.00025205,2]
[332167841,1720998647276,-677.04,0.00025205,2]
[332167842,1720998647286,-569.28631948,0.00025205,2]
[332167843,1720998647296,-500.0,0.00025205,2]
[332167844,1720998647307,-500.0,0.00025205,2]
[332167845,1720998647317,-500.0,0.00025205,2]
[332167846,1720998647326,-500.0,0.00025205,2]
[332167847,1720998647337,-500.0,0.00025205,2]
[332167848,1720998647346,-500.0,0.00025205,2]
[332167849,1720998647355,-580.83,0.00025205,4]
[332167850,1720998647364,-4845.90162399,0.00025205,2]
[332167851,1720998647454,-615.3,0.00025205,2]
[332167852,1720998647532,-835.6949805,0.00024657,2]
[332167857,1720999508107,482.39291863,0.00014999,2]
[332167863,1720999723635,2673.02150699,0.00014999,2]
[332167864,1720999737303,154.63660398,0.00014999,2]
[332167921,1720999834085,-155.21333804,0.00016255,2]
[332167923,1720999834098,-276.88795357,0.00018798,2]
[332167926,1720999834108,-150.0,0.000189,2]
[332167928,1720999834117,-135.28440547,0.0002,2]
[332168275,1720999837915,-782.14324729,0.0002,2]
[332168277,1720999837925,-5668.1598834,0.0002,2]
[332168279,1720999837934,-4032.3183316,0.0002,2]
[332168281,1720999837944,-478.534014,0.00021096,2]
[332168283,1720999837953,-880.93169364,0.00022,2]
[332168285,1720999837964,-24900.0,0.00022206,2]
[332168287,1720999837974,-191.16817144,0.00022941,2]
[332168289,1720999837983,-1141.36067862,0.00023453,2]
[332168291,1720999837993,-200.88652735,0.00023455,2]
[332168293,1720999838002,-150.0,0.000239,2]
[332168295,1720999838011,-167.57952501,0.00023966,2]
[332168297,1720999838022,-165.25732412,0.00023966,2]
[332168299,1720999838032,-4801.79730789,0.00024547,2]
[332168300,1720999838042,-335.69498051,0.00024557,2]
[332168302,1720999838052,-195.4,0.00024637,3]
[332168304,1720999838062,-586.22,0.00024637,3]
[332168306,1720999838071,-233.57973404,0.00024646,2]
[332168308,1720999838081,-500.0,0.00024646,2]
[332168310,1720999838091,-500.0,0.00024646,2]
[332168312,1720999838103,-154.52478065,0.00024646,2]
[332168314,1720999838114,-282.60168813,0.00024646,2]
[332168316,1720999838124,-500.0,0.00024646,2]
[332168318,1720999838135,-500.0,0.00024646,2]
[332168320,1720999838146,-500.0,0.00024646,2]
[332168323,1720999838157,-8758.24232577,0.00024647,3]
[332168325,1720999838169,-24745.07590143,0.00024647,3]
[332168328,1720999838184,-127110.2799768,0.00024647,3]
[332168330,1720999838195,-1000.0,0.00024657,2]
[332168332,1720999838204,-893.2074911,0.00024657,2]
[332168334,1720999838214,-500.0,0.00024657,2]
[332168336,1720999838224,-637.67,0.00024657,2]
[332168338,1720999838234,-500.0,0.00024657,2]
[332168340,1720999838246,-575.73674924,0.00024657,2]
[332168342,1720999838258,-500.0,0.00024657,2]
[332168344,1720999838268,-228.8614272,0.00024657,2]
[332168346,1720999838277,-500.0,0.00024657,2]
[332168348,1720999838287,-500.0,0.00024657,2]
[332168350,1720999838296,-555.04902352,0.00024657,2]
[332168352,1720999838305,-500.0,0.00024657,2]
[332168354,1720999838315,-500.0,0.00024657,2]
[332168356,1720999838325,-500.0,0.00024657,2]
[332168358,1720999838335,-500.0,0.00024657,2]
[332168359,1720999838347,-500.0,0.00024657,2]
[332168362,1720999838356,-500.0,0.00024657,2]
[332168363,1720999838365,-500.0,0.00024657,2]
[332168365,1720999838375,-500.0,0.00024657,2]
[332168367,1720999838384,-500.0,0.00024657,2]
[332168369,1720999838393,-500.0,0.00024657,2]
[332168372,1720999838402,-500.0,0.00024657,2]
[332168374,1720999838411,-500.0,0.00024657,2]
[332168376,1720999838421,-500.0,0.00024657,2]
[332168378,1720999838431,-500.0,0.00024657,2]
[332168380,1720999838440,-500.0,0.00024657,2]
[332168382,1720999838449,-500.0,0.00024657,2]
[332168384,1720999838458,-500.0,0.00024657,2]
[332168386,1720999838468,-200.0,0.00024657,2]
[332168388,1720999838478,-462.77916055,0.00024657,2]
[332168390,1720999838487,-500.0,0.00024657,2]
[332168392,1720999838496,-500.0,0.00024657,2]
[332168394,1720999838505,-500.0,0.00024657,2]
[332168396,1720999838515,-500.0,0.00024657,2]
[332168398,1720999838524,-628.29331131,0.00024657,2]
[332168400,1720999838533,-500.0,0.00024657,2]
[332168401,1720999838543,-500.0,0.00024657,2]
[332168402,1720999838552,-500.0,0.00024657,2]
[332168403,1720999838561,-493.87121565,0.00024657,2]
[332168404,1720999838571,-500.0,0.00024657,2]
[332168406,1720999838580,-500.0,0.00024657,2]
[332168408,1720999838589,-500.0,0.00024657,2]
[332168409,1720999838602,-500.0,0.00024657,2]
[332168411,1720999838612,-500.0,0.00024657,2]
[332168413,1720999838622,-500.0,0.00024657,2]
[332168415,1720999838633,-364.81307961,0.00024657,2]
[332168417,1720999838642,-500.0,0.00024657,2]
[332168418,1720999838651,-198.99681093,0.00024657,2]
[332168419,1720999838661,-500.0,0.00024657,2]
[332168420,1720999838670,-240.14743941,0.00024657,2]
[332168421,1720999838679,-500.0,0.00024657,2]
[332168422,1720999838688,-500.0,0.00024657,2]
[332168423,1720999838698,-500.0,0.00024657,2]
[332168424,1720999838707,-500.0,0.00024657,2]
[332168425,1720999838716,-500.0,0.00024657,2]
[332168426,1720999838726,-500.0,0.00024657,2]
[332168427,1720999838735,-500.0,0.00024657,2]
[332168428,1720999838745,-500.0,0.00024657,2]
[332168429,1720999838754,-518.28,0.00024657,2]
[332168430,1720999838763,-500.0,0.00024657,2]
[332168431,1720999838773,-500.0,0.00024657,2]
[332168432,1720999838782,-500.0,0.00024657,2]
[332168433,1720999838791,-500.0,0.00024657,2]
[332168434,1720999838802,-500.0,0.00024657,2]
[332168435,1720999838811,-500.0,0.00024657,2]
[332168436,1720999838820,-500.0,0.00024657,2]
[332168437,1720999838830,-602.08218057,0.00024657,2]
[332168439,1720999838839,-500.0,0.00024657,2]
[332168442,1720999838851,-500.0,0.00024657,2]
[332168443,1720999838861,-500.0,0.00024657,2]
[332168444,1720999838870,-500.0,0.00024657,2]
[332168445,1720999838880,-500.0,0.00024657,2]
[332168446,1720999838889,-500.0,0.00024657,2]
[332168447,1720999838899,-500.0,0.00024657,2]
[332168448,1720999838908,-500.0,0.00024657,2]
[332168449,1720999838917,-500.0,0.00024657,2]
[332168450,1720999838927,-500.0,0.00024657,2]
[332168451,1720999838936,-500.0,0.00024657,2]
[332168452,1720999838949,-500.0,0.00024657,2]
[332168453,1720999838958,-500.0,0.00024657,2]
[332168454,1720999838968,-500.0,0.00024657,2]
[332168455,1720999838977,-500.0,0.00024657,2]
[332168456,1720999838987,-500.0,0.00024657,2]
[332168457,1720999838996,-500.0,0.00024657,2]
[332168458,1720999839005,-500.0,0.00024657,2]
[332168459,1720999839014,-506.35995675,0.00024657,2]
[332168460,1720999839024,-500.0,0.00024657,2]
[332168461,1720999839033,-368.05904256,0.00024657,2]
[332168462,1720999839042,-500.0,0.00024657,2]
[332168463,1720999839052,-500.0,0.00024657,2]
[332168464,1720999839062,-500.0,0.00024657,2]
[332168465,1720999839071,-500.0,0.00024657,2]
[332168466,1720999839081,-500.0,0.00024657,2]
[332168467,1720999839090,-500.0,0.00024657,2]
[332168468,1720999839102,-500.0,0.00024657,2]
[332168469,1720999839112,-500.0,0.00024657,2]
[332168470,1720999839121,-500.0,0.00024657,2]
[332168471,1720999839130,-500.0,0.00024657,2]
[332168472,1720999839140,-500.0,0.00024657,2]
[332168473,1720999839149,-500.0,0.00024657,2]
[332168474,1720999839159,-500.0,0.00024657,2]
[332168475,1720999839168,-500.0,0.00024657,2]
[332168476,1720999839178,-500.0,0.00024657,2]
[332168477,1720999839187,-571.842446,0.00024657,2]
[332168478,1720999839197,-500.0,0.00024657,2]
[332168479,1720999839206,-243.68912803,0.00024657,2]
[332168480,1720999839215,-500.0,0.00024657,2]
[332168481,1720999839224,-500.0,0.00024657,2]
[332168482,1720999839234,-500.0,0.00024657,2]
[332168483,1720999839244,-546.94,0.00024657,4]
[332168484,1720999839257,-500.0,0.00024657,2]
[332168485,1720999839266,-500.0,0.00024657,2]
[332168486,1720999839276,-500.0,0.00024657,2]
[332168487,1720999839286,-500.0,0.00024657,2]
[332168488,1720999839296,-500.0,0.00024657,2]
[332168489,1720999839305,-500.0,0.00024657,2]
[332168490,1720999839315,-500.0,0.00024657,2]
[332168491,1720999839325,-500.0,0.00024657,2]
[332168492,1720999839335,-500.0,0.00024657,2]
[332168493,1720999839347,-500.0,0.00024657,2]
[332168494,1720999839356,-500.0,0.00024657,2]
[332168495,1720999839366,-500.0,0.00024657,2]
[332168496,1720999839375,-424.79681252,0.00024657,2]
[332168497,1720999839385,-500.0,0.00024657,2]
[332168498,1720999839394,-500.0,0.00024657,2]
[332168499,1720999839404,-500.0,0.00024657,2]
[332168500,1720999839413,-509.6141302,0.00024657,2]
[332168501,1720999839423,-500.0,0.00024657,2]
[332168502,1720999839432,-500.0,0.00024657,2]
[332168503,1720999839441,-500.0,0.00024657,2]
[332168504,1720999839451,-500.0,0.00024657,2]
[332168505,1720999839460,-500.0,0.00024657,2]
[332168506,1720999839471,-500.0,0.00024657,2]
[332168507,1720999839480,-500.0,0.00024657,2]
[332168508,1720999839489,-500.0,0.00024657,2]
[332168509,1720999839501,-500.0,0.00024657,2]
[332168510,1720999839640,-500.0,0.00024657,2]
[332168511,1720999839650,-500.0,0.00024657,2]
[332168512,1720999839659,-500.0,0.00024657,2]
[332168513,1720999839669,-500.0,0.00024657,2]
[332168514,1720999839678,-569.14,0.00024657,2]
[332168515,1720999839688,-500.0,0.00024657,2]
[332168516,1720999839698,-500.0,0.00024657,2]
[332168518,1720999839708,-500.0,0.00024657,2]
[332168519,1720999839718,-500.0,0.00024657,2]
[332168521,1720999839728,-500.0,0.00024657,2]
[332168523,1720999839737,-957.63,0.00024657,2]
[332168524,1720999839748,-500.0,0.00024657,2]
[332168526,1720999839757,-500.0,0.00024657,2]
[332168528,1720999839766,-500.0,0.00024657,2]
[332168529,1720999839775,-500.0,0.00024657,2]
[332168530,1720999839785,-500.0,0.00024657,2]
[332168531,1720999839795,-634.73,0.00024657,2]
[332168532,1720999839805,-500.0,0.00024657,2]
[332168533,1720999839815,-2874.81,0.00024657,2]
[332168534,1720999839825,-500.0,0.00024657,2]
[332168535,1720999839834,-500.0,0.00024657,2]
[332168536,1720999839846,-500.0,0.00024657,2]
[332168537,1720999839856,-500.0,0.00024657,2]
[332168538,1720999839865,-500.0,0.00024657,2]
[332168539,1720999839875,-500.0,0.00024657,2]
[332168540,1720999839885,-500.0,0.00024657,2]
[332168542,1720999839895,-500.0,0.00024657,2]
[332168544,1720999839904,-500.0,0.00024657,2]
[332168546,1720999839914,-500.0,0.00024657,2]
[332168547,1720999839924,-500.0,0.00024657,2]
[332168548,1720999839934,-500.0,0.00024657,2]
[332168549,1720999839944,-500.0,0.00024657,2]
[332168550,1720999839953,-500.0,0.00024657,2]
[332168551,1720999839962,-500.0,0.00024657,2]
[332168552,1720999839972,-500.0,0.00024657,2]
[332168553,1720999839982,-500.0,0.00024657,2]
[332168554,1720999839991,-500.0,0.00024657,2]
[332168555,1720999840001,-500.0,0.00024657,2]
[332168556,1720999840010,-500.0,0.00024657,2]
[332168557,1720999840020,-500.0,0.00024657,2]
[332168558,1720999840029,-500.0,0.00024657,2]
[332168559,1720999840039,-500.0,0.00024657,2]
[332168560,1720999840049,-500.0,0.00024657,2]
[332168561,1720999840058,-500.0,0.00024657,2]
[332168562,1720999840069,-255.27094501,0.00024657,2]
[332168563,1720999840078,-500.0,0.00024657,2]
[332168564,1720999840089,-500.0,0.00024657,2]
[332168565,1720999840102,-500.0,0.00024657,2]
[332168566,1720999840111,-500.0,0.00024657,2]
[332168567,1720999840120,-500.0,0.00024657,2]
[332168568,1720999840129,-500.0,0.00024657,2]
[332168569,1720999840139,-500.0,0.00024657,2]
[332168570,1720999840148,-500.0,0.00024657,2]
[332168571,1720999840158,-500.0,0.00024657,2]
[332168572,1720999840167,-500.0,0.00024657,2]
[332168573,1720999840176,-500.0,0.00024657,2]
[332168574,1720999840187,-500.0,0.00024657,2]
[332168575,1720999840196,-500.0,0.00024657,2]
[332168576,1720999840206,-650.0,0.00024657,2]
[332168577,1720999840216,-500.0,0.00024657,2]
[332168578,1720999840225,-500.0,0.00024657,2]
[332168579,1720999840235,-500.0,0.00024657,2]
[332168580,1720999840245,-500.0,0.00024657,2]
[332168581,1720999840258,-500.0,0.00024657,2]
[332168582,1720999840268,-500.0,0.00024657,2]
[332168583,1720999840278,-414.86691459,0.00024657,2]
[332168584,1720999840288,-500.0,0.00024657,2]
[332168585,1720999840298,-500.0,0.00024657,2]
[332168586,1720999840307,-500.0,0.00024657,2]
[332168587,1720999840317,-500.0,0.00024657,2]
[332168588,1720999840326,-500.0,0.00024657,2]
[332168589,1720999840337,-500.0,0.00024657,2]
[332168590,1720999840349,-500.0,0.00024657,2]
[332168591,1720999840358,-500.0,0.00024657,2]
[332168592,1720999840368,-500.0,0.00024657,2]
[332168593,1720999840377,-8342.71,0.00024657,2]
[332168594,1720999840387,-500.0,0.00024657,2]
[332168595,1720999840396,-500.0,0.00024657,2]
[332168596,1720999840405,-1500.0,0.00024657,2]
[332168597,1720999840415,-500.0,0.00024657,2]
[332168598,1720999840425,-542.49,0.00024657,2]
[332168599,1720999840434,-500.0,0.00024657,2]
[332168600,1720999840443,-500.0,0.00024657,2]
[332168601,1720999840453,-500.0,0.00024657,2]
[332168602,1720999840464,-500.0,0.00024657,2]
[332168603,1720999840473,-500.0,0.00024657,2]
[332168604,1720999840483,-504.84255498,0.00024657,2]
[332168605,1720999840492,-206.71041229,0.00024657,2]
[332168606,1720999840502,-1338.87,0.00024657,2]
[332168607,1720999840511,-500.0,0.00024657,2]
[332168608,1720999840522,-500.0,0.00024657,2]
[332168609,1720999840531,-500.0,0.00024657,2]
[332168610,1720999840540,-500.0,0.00024657,2]
[332168611,1720999840550,-500.0,0.00024657,2]
[332168612,1720999840559,-500.0,0.00024657,2]
[332168613,1720999840569,-500.0,0.00024657,2]
[332168614,1720999840577,-500.0,0.00024657,2]
[332168615,1720999840586,-500.0,0.00024657,2]
[332168616,1720999840595,-500.0,0.00024657,2]
[332168617,1720999840605,-500.0,0.00024657,2]
[332168618,1720999840614,-500.0,0.00024657,2]
[332168619,1720999840623,-500.0,0.00024657,2]
[332168620,1720999840633,-500.0,0.00024657,2]
[332168621,1720999840642,-500.0,0.00024657,2]
[332168622,1720999840651,-500.0,0.00024657,2]
[332168623,1720999840661,-273.55774797,0.00024657,2]
[332168624,1720999840670,-476.08265783,0.00024657,2]
[332168625,1720999840680,-500.0,0.00024657,2]
[332168626,1720999840689,-535.26836982,0.00024658,2]
[332168627,1720999840698,-500.0,0.00024658,2]
[332168628,1720999840708,-452.9554,0.00024658,2]
[332168629,1720999840718,-500.0,0.00024658,2]
[332168630,1720999840727,-500.0,0.00024658,2]
[332168631,1720999840736,-500.0,0.00024658,2]
[332168632,1720999840746,-150.112233,0.000248,3]
[332168633,1720999840755,-151.0,0.00024826,2]
[332168634,1720999840764,-7251.66378018,0.00024921,5]
[332168635,1720999840902,-276.88795357,0.00017531,2]
[332168636,1720999840912,-5637.70843533,0.00024921,5]
[332168637,1720999840921,-69023.86534373,0.00024921,3]
[332168638,1720999840933,-312.2633,0.00024921,3]
[332168683,1720999845899,-500.0,0.00024657,2]
[332168684,1720999845908,-317.17300598,0.00024657,2]
[332168685,1720999845918,-91277.46956027,0.00024921,3]
[332168686,1720999845928,-14529.47125177,0.00024931,5]
[332168687,1720999845938,-500.0,0.00024931,2]
[332168688,1720999845949,-637.67,0.00024931,2]
[332168689,1720999845959,-500.0,0.00024931,2]
[332168690,1720999845968,-500.0,0.00024931,2]
[332168691,1720999845978,-500.0,0.00024931,2]
[332168692,1720999845988,-276.94979069,0.00024931,2]
[332168693,1720999845999,-500.0,0.00024931,2]
[332168694,1720999846008,-500.0,0.00024931,2]
[332168695,1720999846018,-500.0,0.00024931,2]
[332168696,1720999846027,-500.0,0.00024931,2]
[332168697,1720999846037,-500.0,0.00024931,2]
[332168698,1720999846047,-500.0,0.00024931,2]
[332168699,1720999846057,-518.28,0.00024931,2]
[332168700,1720999846066,-299.1329887,0.00024931,2]
[332168701,1720999846076,-500.0,0.00024931,2]
[332168702,1720999846087,-500.0,0.00024931,2]
[332168703,1720999846097,-500.0,0.00024931,2]
[332168704,1720999846108,-500.0,0.00024931,2]
[332168705,1720999846119,-500.0,0.00024931,2]
[332168706,1720999846131,-500.0,0.00024931,2]
[332168707,1720999846142,-500.0,0.00024931,2]
[332168708,1720999846152,-500.0,0.00024931,2]
[332168709,1720999846162,-500.0,0.00024931,2]
[332168710,1720999846170,-500.0,0.00024931,2]
[332168711,1720999846179,-500.0,0.00024931,2]
[332168712,1720999846189,-500.0,0.00024931,2]
[332168713,1720999846198,-500.0,0.00024931,2]
[332168714,1720999846207,-602.06,0.00024931,2]
[332168715,1720999846216,-545.84,0.00024931,2]
[332168716,1720999846226,-500.0,0.00024931,2]
[332168717,1720999846260,-500.0,0.00024931,2]
[332168718,1720999846269,-546.94,0.00024931,4]
[332168719,1720999846278,-451.84832719,0.00024931,2]
[332168720,1720999846287,-500.0,0.00024931,2]
[332168721,1720999846298,-546.02945882,0.00024931,2]
[332168722,1720999846307,-500.0,0.00024931,2]
[332168723,1720999846317,-500.0,0.00024931,2]
[332168724,1720999846328,-500.0,0.00024931,2]
[332168725,1720999846337,-500.0,0.00024931,2]
[332168726,1720999846346,-500.0,0.00024931,2]
[332168727,1720999846357,-500.0,0.00024931,2]
[332168728,1720999846366,-574.05402187,0.00024931,2]
[332168729,1720999846376,-609.1707801,0.00024931,2]
[332168730,1720999846385,-500.0,0.00024931,2]
[332168731,1720999846394,-150.7174982,0.00024931,2]
[332168732,1720999846403,-500.0,0.00024931,2]
[332168733,1720999846414,-500.0,0.00024931,2]
[332168734,1720999846425,-957.63,0.00024931,2]
[332168735,1720999846436,-634.73,0.00024931,2]
[332168736,1720999846444,-500.0,0.00024931,2]
[332168737,1720999846453,-2874.81,0.00024931,2]
[332168738,1720999846462,-500.0,0.00024931,2]
[332168739,1720999846471,-500.0,0.00024931,2]
[332168740,1720999846481,-500.0,0.00024931,2]
[332168741,1720999846500,-500.0,0.00024931,2]
[332168742,1720999846510,-500.0,0.00024931,2]
[332168743,1720999846520,-500.0,0.00024931,2]
[332168744,1720999846530,-500.0,0.00024931,2]
[332168745,1720999846539,-500.0,0.00024931,2]
[332168746,1720999846548,-283.96091767,0.00024931,2]
[332168747,1720999846558,-500.0,0.00024931,2]
[332168748,1720999846568,-500.0,0.00024931,2]
[332168749,1720999846577,-500.0,0.00024931,2]
[332168750,1720999846587,-500.0,0.00024931,2]
[332168751,1720999846597,-559.88501925,0.00024931,2]
[332168752,1720999846607,-500.0,0.00024931,2]
[332168753,1720999846616,-500.0,0.00024931,2]
[332168754,1720999846625,-500.0,0.00024931,2]
[332168755,1720999846635,-268.64485697,0.00024931,2]
[332168756,1720999846644,-625.83528691,0.00024931,2]
[332168757,1720999846653,-500.0,0.00024931,2]
[332168758,1720999846662,-541.58,0.00024931,2]
[332168759,1720999846672,-650.0,0.00024931,2]
[332168760,1720999846681,-500.0,0.00024931,2]
[332168761,1720999846691,-500.0,0.00024931,2]
[332168762,1720999846701,-500.0,0.00024931,2]
[332168763,1720999846710,-500.0,0.00024931,2]
[332168764,1720999846719,-500.01163934,0.00024931,2]
[332168765,1720999846729,-500.0,0.00024931,2]
[332168766,1720999846738,-500.0,0.00024931,2]
[332168767,1720999846748,-500.0,0.00024931,2]
[332168768,1720999846758,-500.0,0.00024931,2]
[332168769,1720999846767,-500.0,0.00024931,2]
[332168770,1720999846777,-500.0,0.00024931,2]
[332168771,1720999846787,-8342.71,0.00024931,2]
[332168772,1720999846797,-500.0,0.00024931,2]
[332168773,1720999846807,-1500.0,0.00024931,2]
[332168774,1720999846817,-500.0,0.00024931,2]
[332168775,1720999846827,-542.49,0.00024931,2]
[332168776,1720999846837,-500.0,0.00024931,2]
[332168777,1720999846846,-500.0,0.00024931,2]
[332168778,1720999846859,-500.0,0.00024931,2]
[332168779,1720999846868,-1338.87,0.00024931,2]
[332168780,1720999846878,-500.0,0.00024931,2]
[332168781,1720999846887,-503.20311433,0.00024931,2]
[332168782,1720999846896,-500.0,0.00024931,2]
[332168783,1720999846905,-346.03924151,0.00024931,2]
[332168784,1720999846915,-500.0,0.00024931,2]
[332168785,1720999846924,-500.0,0.00024931,2]
[332168786,1720999846933,-500.0,0.00024931,2]
[332168787,1720999846943,-326.4,0.00024931,2]
[332168788,1720999846951,-500.0,0.00024931,2]
[332168789,1720999846961,-500.0,0.00024931,2]
[332168790,1720999846971,-5361.11886977,0.00025,2]
[332168792,1720999934406,-263.29031622,0.00016255,2]
[332168793,1720999934441,-909.07625877,0.00016255,2]
[332168794,1720999934476,-1350.53628133,0.00016255,2]
[332168795,1720999934511,-354.29784889,0.00016255,2]
[332168796,1720999934544,-209.72130719,0.00016255,2]
[332168797,1720999934577,-193.69798923,0.00016255,2]
[332168798,1720999934611,-348.36389326,0.00016255,2]
[332168799,1720999934644,-510.44220046,0.00016255,2]
[332168800,1720999934679,-318.92327881,0.00016255,2]
[332168801,1720999934713,-195.31716393,0.00016255,2]
[332168802,1720999955405,-1751.12377911,0.00016255,2]
[332168803,1720999955441,-283.34784501,0.00016255,2]
[332168804,1720999973636,-208.17979125,0.00016255,2]
[332168805,1720999995573,-359.01191263,0.00016255,2]
[332168808,1721000071342,2673.02150699,0.00016255,2]
[332168809,1721000110118,335.20657328,0.00016255,2]
[332168810,1721000112600,160.0869779,0.00016255,2]
[332168811,1721000114362,300.57247778,0.00016255,2]
[332168812,1721000133443,891.21441476,0.00016255,2]
[332168813,1721000135717,316.35340858,0.00016255,2]
[332168814,1721000140617,369.14049987,0.00016255,2]
[332168815,1721000142952,480.81570684,0.00016255,2]
[332168816,1721000155994,164.83119203,0.00016255,2]
[332168819,1721000189937,412.74008337,0.00016255,2]
[332168820,1721000205541,909.60427535,0.00016255,2]
[332168824,1721000352774,1976.87217408,0.00016255,2]
[332168825,1721000375278,154.83742071,0.00016255,2]
[332168826,1721000394352,2673.02150699,0.00016255,2]
[332168827,1721000424356,2673.02150699,0.00016255,2]
[332168829,1721000587460,1491.5302579,0.00016255,2]
[332168832,1721000768974,1289.34133872,0.00016255,2]
[332168833,1721000777808,1988.50300609,0.00016255,2]
[332168834,1721000967274,662.1748885,0.00016255,2]
[332168878,1721001032515,-276.88795357,0.00016803,2]
[332168880,1721001032525,-276.88795357,0.00016803,2]
[332168882,1721001032535,-313.07602181,0.00019,2]
[332168884,1721001032545,-858.57108302,0.0002,2]
[332168886,1721001032555,-151.18583801,0.0002,2]
[332168888,1721001032564,-276.5555316,0.00020309,2]
[332168890,1721001032574,-167.591787,0.00020474,2]
[332168892,1721001032583,-8222.62818262,0.00020761,2]
[332168895,1721001032595,-1019.07589728,0.00020761,2]
[332168897,1721001032606,-2610.54855304,0.00020761,2]
[332168899,1721001032617,-2426.36849623,0.00020761,2]
[332169020,1721001037950,-10621.37887083,0.00020761,2]
[332169022,1721001037959,-454.607313,0.00021096,2]
[332169024,1721001037968,-199.943201,0.00021918,2]
[332169026,1721001037978,-231.61776155,0.00024,2]
[332169028,1721001037989,-4201.57264436,0.00024501,2]
[332169029,1721001037998,-163.50581382,0.00024601,2]
[332169030,1721001038011,-500.0,0.00024601,2]
[332169032,1721001038020,-500.0,0.00024601,2]
[332169034,1721001038031,-308.16734645,0.00024601,2]